[Event "Titled Tuesday Blitz February 15 Early 2022"]
[White "Urazayev, Arystanbek"]
[Black "Budrewicz, Krzysztof"]
[WhiteFideId "13709810"]
[BlackFideId "1127950"]
[WhiteElo "2321"]
[BlackElo "2248"]
[Result "0-1"]
[Round "02"]
[TimeControl "180+1"]
[Date "2022.02.15"]
[WhiteClock "0:00:16"]
[BlackClock "0:00:46"]

1. d4 {[%clk 0:03:00]}  Nf6 {[%clk 0:02:59]} 2. c4 {[%clk 0:03:01]}  g6 {[%clk 0:02:59]} 3. Nc3 {[%clk 0:03:01]}  Bg7 {[%clk 0:03:00]} 4. e4 {[%clk 0:03:01]}  O-O {[%clk 0:03:00]} 5. Be2 {[%clk 0:03:02]}  d6 {[%clk 0:03:00]} 6. h4 {[%clk 0:03:02]}  h6 {[%clk 0:02:51]} 7. h5 {[%clk 0:02:59]}  g5 {[%clk 0:02:51]} 8. f4 {[%clk 0:02:59]}  gxf4 {[%clk 0:02:40]} 9. Bxf4 {[%clk 0:03:00]}  Nc6 {[%clk 0:02:27]} 10. Qd2 {[%clk 0:02:56]}  Kh7 {[%clk 0:02:22]} 11. Nf3 {[%clk 0:02:49]}  Ng4 {[%clk 0:02:18]} 12. d5 {[%clk 0:02:15]}  Nce5 {[%clk 0:02:16]} 13. Nxe5 {[%clk 0:02:15]}  dxe5 {[%clk 0:02:07]} 14. Bg3 {[%clk 0:02:09]}  Bf6 {[%clk 0:01:56]} 15. Bxg4 {[%clk 0:01:51]}  Bxg4 {[%clk 0:01:54]} 16. Nd1 {[%clk 0:01:44]}  Qd6 {[%clk 0:01:44]} 17. Ne3 {[%clk 0:01:44]}  Bg5 {[%clk 0:01:43]} 18. Qc3 {[%clk 0:01:32]}  Bxe3 {[%clk 0:01:33]} 19. Qxe3 {[%clk 0:01:33]}  f6 {[%clk 0:01:30]} 20. c5 {[%clk 0:01:31]}  Qa6 {[%clk 0:01:29]} 21. Kf2 {[%clk 0:01:05]}  Rg8 {[%clk 0:01:28]} 22. b3 {[%clk 0:00:55]}  Rg7 {[%clk 0:01:28]} 23. Bh4 {[%clk 0:00:50]}  Rag8 {[%clk 0:01:27]} 24. g3 {[%clk 0:00:50]}  Rf7 {[%clk 0:01:23]} 25. Kg1 {[%clk 0:00:49]}  Bc8 {[%clk 0:01:04]} 26. Rh2 {[%clk 0:00:46]}  Rg4 {[%clk 0:01:04]} 27. Rf2 {[%clk 0:00:43]}  Rfg7 {[%clk 0:01:03]} 28. Kh2 {[%clk 0:00:43]}  Qb5 {[%clk 0:00:56]} 29. a3 {[%clk 0:00:30]}  Qe8 {[%clk 0:00:53]} 30. Rf3 {[%clk 0:00:15]}  Qxh5 {[%clk 0:00:51]} 31. Qe1 {[%clk 0:00:16]}  Rxh4+ {[%clk 0:00:49]} 32. gxh4 {[%clk 0:00:16]}  Qxf3 {[%clk 0:00:49]} 33. Ra2 {[%clk 0:00:16]}  Qh3# {[%clk 0:00:46]} 0-1


[Site "https://www.chess.com"]

[Event "Titled Tuesday Blitz February 15 Early 2022"]
[White "Urbina Quiroz, Edwin"]
[Black "Tsyhanchuk, Stanislav"]
[WhiteFideId "6500650"]
[BlackFideId "13505130"]
[WhiteElo "2130"]
[BlackElo "2078"]
[Result "1-0"]
[Round "02"]
[TimeControl "180+1"]
[Date "2022.02.15"]
[WhiteClock "0:00:15"]
[BlackClock "0:00:16"]

1. e4 {[%clk 0:02:31]}  c5 {[%clk 0:02:58]} 2. Nf3 {[%clk 0:02:29]}  e6 {[%clk 0:02:57]} 3. c3 {[%clk 0:02:28]}  d5 {[%clk 0:02:52]} 4. e5 {[%clk 0:02:27]}  Nc6 {[%clk 0:02:38]} 5. d4 {[%clk 0:02:26]}  cxd4 {[%clk 0:02:35]} 6. cxd4 {[%clk 0:02:27]}  Bb4+ {[%clk 0:02:34]} 7. Bd2 {[%clk 0:02:23]}  Nge7 {[%clk 0:02:14]} 8. Bd3 {[%clk 0:02:06]}  Ng6 {[%clk 0:01:42]} 9. O-O {[%clk 0:01:49]}  Bxd2 {[%clk 0:01:27]} 10. Qxd2 {[%clk 0:01:43]}  a6 {[%clk 0:01:13]} 11. Nc3 {[%clk 0:01:42]}  O-O {[%clk 0:01:04]} 12. a4 {[%clk 0:01:36]}  f5 {[%clk 0:00:52]} 13. Rfb1 {[%clk 0:00:52]}  Nh4 {[%clk 0:00:46]} 14. Be2 {[%clk 0:00:43]}  Nxf3+ {[%clk 0:00:33]} 15. Bxf3 {[%clk 0:00:43]}  Qh4 {[%clk 0:00:29]} 16. Ne2 {[%clk 0:00:39]}  Bd7 {[%clk 0:00:17]} 17. b4 {[%clk 0:00:38]}  Be8 {[%clk 0:00:13]} 18. b5 {[%clk 0:00:27]}  Ne7 {[%clk 0:00:13]} 19. Qf4 {[%clk 0:00:23]}  Qxf4 {[%clk 0:00:09]} 20. Nxf4 {[%clk 0:00:24]}  Bf7 {[%clk 0:00:07]} 21. bxa6 {[%clk 0:00:24]}  bxa6 {[%clk 0:00:07]} 22. Rb6 {[%clk 0:00:22]}  Nc8 {[%clk 0:00:05]} 23. Rc6 {[%clk 0:00:20]}  Re8 {[%clk 0:00:06]} 24. Rac1 {[%clk 0:00:17]}  g5 {[%clk 0:00:05]} 25. Nh5 {[%clk 0:00:16]}  Ne7 {[%clk 0:00:04]} 26. Nf6+ {[%clk 0:00:15]}  Kh8 {[%clk 0:00:04]} 27. Nxe8 {[%clk 0:00:11]}  Nxc6 {[%clk 0:00:03]} 28. Rxc6 {[%clk 0:00:12]}  Bxe8 {[%clk 0:00:03]} 29. Rxe6 {[%clk 0:00:11]}  Rc8 {[%clk 0:00:03]} 30. g4 {[%clk 0:00:10]}  Bf7 {[%clk 0:00:04]} 31. Rxa6 {[%clk 0:00:09]}  fxg4 {[%clk 0:00:04]} 32. Bxg4 {[%clk 0:00:09]}  Rc1+ {[%clk 0:00:05]} 33. Kg2 {[%clk 0:00:09]}  Bg6 {[%clk 0:00:06]} 34. e6 {[%clk 0:00:09]}  Be4+ {[%clk 0:00:06]} 35. f3 {[%clk 0:00:09]}  Rc2+ {[%clk 0:00:06]} 36. Kg3 {[%clk 0:00:09]}  Bg6 {[%clk 0:00:07]} 37. e7 {[%clk 0:00:08]}  Re2 {[%clk 0:00:06]} 38. Re6 {[%clk 0:00:07]}  Rxe6 {[%clk 0:00:05]} 39. Bxe6 {[%clk 0:00:08]}  Kg7 {[%clk 0:00:05]} 40. Bd7 {[%clk 0:00:05]}  h5 {[%clk 0:00:04]} 41. e8=Q {[%clk 0:00:05]}  h4+ {[%clk 0:00:05]} 42. Kf2 {[%clk 0:00:05]}  Bxe8 {[%clk 0:00:06]} 43. Bxe8 {[%clk 0:00:05]}  Kf6 {[%clk 0:00:07]} 44. Bc6 {[%clk 0:00:06]}  Ke7 {[%clk 0:00:08]} 45. Bxd5 {[%clk 0:00:06]}  Kd6 {[%clk 0:00:09]} 46. Be4 {[%clk 0:00:06]}  Kc7 {[%clk 0:00:09]} 47. h3 {[%clk 0:00:07]}  Kb6 {[%clk 0:00:10]} 48. Ke2 {[%clk 0:00:07]}  Ka5 {[%clk 0:00:11]} 49. Ke3 {[%clk 0:00:07]}  Kxa4 {[%clk 0:00:11]} 50. f4 {[%clk 0:00:07]}  gxf4+ {[%clk 0:00:10]} 51. Kxf4 {[%clk 0:00:08]}  Kb4 {[%clk 0:00:11]} 52. Kg5 {[%clk 0:00:08]}  Kc4 {[%clk 0:00:12]} 53. d5 {[%clk 0:00:08]}  Kc5 {[%clk 0:00:12]} 54. Bh1 {[%clk 0:00:09]}  Kd6 {[%clk 0:00:12]} 55. Kxh4 {[%clk 0:00:10]}  Ke5 {[%clk 0:00:12]} 56. Kg5 {[%clk 0:00:11]}  Kd6 {[%clk 0:00:12]} 57. h4 {[%clk 0:00:12]}  Kd7 {[%clk 0:00:13]} 58. h5 {[%clk 0:00:12]}  Ke7 {[%clk 0:00:13]} 59. h6 {[%clk 0:00:13]}  Kf7 {[%clk 0:00:14]} 60. Kh5 {[%clk 0:00:14]}  Kg8 {[%clk 0:00:14]} 61. Kg6 {[%clk 0:00:15]}  Kh8 {[%clk 0:00:15]} 62. d6 {[%clk 0:00:16]}  Kg8 {[%clk 0:00:15]} 63. Bd5+ {[%clk 0:00:15]}  Kh8 {[%clk 0:00:16]} 64. Be4 {[%clk 0:00:14]}  Kg8 {[%clk 0:00:16]} 65. d7 {[%clk 0:00:15]}  Kh8 {[%clk 0:00:16]} 66. d8=Q# {[%clk 0:00:15]} 1-0


[Site "https://www.chess.com"]

[Event "Titled Tuesday Blitz February 15 Early 2022"]
[White "Valle Maytin, Luis Enrique"]
[Black "Danielian, Vardan"]
[WhiteFideId "3503666"]
[BlackFideId "13301594"]
[WhiteElo "1996"]
[BlackElo "2411"]
[Result "0-1"]
[Round "02"]
[TimeControl "180+1"]
[Date "2022.02.15"]
[WhiteClock "0:02:45"]
[BlackClock "0:02:59"]

1. e4 {[%clk 0:03:00]}  c5 {[%clk 0:03:00]} 2. Nf3 {[%clk 0:02:53]}  d6 {[%clk 0:03:00]} 3. d4 {[%clk 0:02:54]}  cxd4 {[%clk 0:03:00]} 4. Nxd4 {[%clk 0:02:55]}  Nf6 {[%clk 0:03:00]} 5. Nc3 {[%clk 0:02:55]}  g6 {[%clk 0:03:01]} 6. Bc4 {[%clk 0:02:54]}  Bg7 {[%clk 0:03:01]} 7. f3 {[%clk 0:02:53]}  O-O {[%clk 0:03:01]} 8. Be3 {[%clk 0:02:54]}  Nc6 {[%clk 0:03:02]} 9. Qd2 {[%clk 0:02:54]}  Bd7 {[%clk 0:03:00]} 10. O-O-O {[%clk 0:02:53]}  Rc8 {[%clk 0:03:01]} 11. Kb1 {[%clk 0:02:52]}  Nxd4 {[%clk 0:03:00]} 12. Qxd4 {[%clk 0:02:48]}  Ng4 {[%clk 0:03:00]} 13. Qd3 {[%clk 0:02:47]}  Nxe3 {[%clk 0:02:59]} 14. Qxe3 {[%clk 0:02:45]} 0-1


[Site "https://www.chess.com"]

[Event "Titled Tuesday Blitz February 15 Early 2022"]
[White "Van Foreest, Jorden"]
[Black "Gaehwiler, Gabriel"]
[WhiteFideId "1039784"]
[BlackFideId "1314530"]
[WhiteElo "2609"]
[BlackElo "2383"]
[Result "1-0"]
[Round "02"]
[TimeControl "180+1"]
[Date "2022.02.15"]
[WhiteClock "0:00:27"]
[BlackClock "0:00:13"]

1. g3 {[%clk 0:03:00]}  g6 {[%clk 0:02:59]} 2. e4 {[%clk 0:02:59]}  Bg7 {[%clk 0:03:00]} 3. d4 {[%clk 0:02:59]}  d6 {[%clk 0:02:58]} 4. Bg2 {[%clk 0:02:59]}  Nf6 {[%clk 0:02:58]} 5. Nc3 {[%clk 0:02:58]}  O-O {[%clk 0:02:58]} 6. Nge2 {[%clk 0:02:58]}  e5 {[%clk 0:02:57]} 7. O-O {[%clk 0:02:55]}  Nc6 {[%clk 0:02:57]} 8. d5 {[%clk 0:02:51]}  Ne7 {[%clk 0:02:57]} 9. a4 {[%clk 0:02:51]}  a5 {[%clk 0:02:57]} 10. Ra3 {[%clk 0:02:46]}  Nd7 {[%clk 0:02:56]} 11. Nb5 {[%clk 0:02:45]}  Nc5 {[%clk 0:02:51]} 12. Be3 {[%clk 0:02:42]}  b6 {[%clk 0:02:50]} 13. Qd2 {[%clk 0:02:13]}  f5 {[%clk 0:02:47]} 14. exf5 {[%clk 0:02:14]}  Nxf5 {[%clk 0:02:44]} 15. Bg5 {[%clk 0:02:13]}  Qd7 {[%clk 0:02:40]} 16. g4 {[%clk 0:02:02]}  Nd4 {[%clk 0:02:23]} 17. Nexd4 {[%clk 0:02:00]}  exd4 {[%clk 0:02:21]} 18. h3 {[%clk 0:01:59]}  Ba6 {[%clk 0:02:19]} 19. Re1 {[%clk 0:01:52]}  Bxb5 {[%clk 0:02:11]} 20. Re7 {[%clk 0:01:52]}  Bxa4 {[%clk 0:01:59]} 21. Rxd7 {[%clk 0:01:51]}  Bxd7 {[%clk 0:02:00]} 22. Rf3 {[%clk 0:01:39]}  Rxf3 {[%clk 0:01:54]} 23. Bxf3 {[%clk 0:01:40]}  Re8 {[%clk 0:01:47]} 24. Bh6 {[%clk 0:01:38]}  Bf6 {[%clk 0:01:40]} 25. Kg2 {[%clk 0:01:23]}  Re7 {[%clk 0:01:19]} 26. h4 {[%clk 0:01:18]}  Be5 {[%clk 0:01:10]} 27. Qg5 {[%clk 0:01:14]}  Re8 {[%clk 0:01:00]} 28. h5 {[%clk 0:01:12]}  Kf7 {[%clk 0:00:59]} 29. hxg6+ {[%clk 0:00:57]}  hxg6 {[%clk 0:01:00]} 30. Qd2 {[%clk 0:00:55]}  Kg8 {[%clk 0:00:56]} 31. Bf4 {[%clk 0:00:52]}  Bg7 {[%clk 0:00:53]} 32. Bg3 {[%clk 0:00:44]}  Kf7 {[%clk 0:00:52]} 33. Bh4 {[%clk 0:00:43]}  Kg8 {[%clk 0:00:43]} 34. Qg5 {[%clk 0:00:42]}  Kf7 {[%clk 0:00:37]} 35. Qf4+ {[%clk 0:00:42]}  Kg8 {[%clk 0:00:37]} 36. Bf6 {[%clk 0:00:43]}  Rf8 {[%clk 0:00:25]} 37. g5 {[%clk 0:00:43]}  Bxf6 {[%clk 0:00:21]} 38. gxf6 {[%clk 0:00:43]}  Bf5 {[%clk 0:00:22]} 39. Qxd4 {[%clk 0:00:39]}  Bxc2 {[%clk 0:00:20]} 40. Bg4 {[%clk 0:00:38]}  Be4+ {[%clk 0:00:18]} 41. Kg3 {[%clk 0:00:35]}  Bf5 {[%clk 0:00:17]} 42. Bxf5 {[%clk 0:00:35]}  gxf5 {[%clk 0:00:17]} 43. Kf4 {[%clk 0:00:32]}  Kf7 {[%clk 0:00:12]} 44. Kxf5 {[%clk 0:00:29]}  Re8 {[%clk 0:00:13]} 45. f4 {[%clk 0:00:27]}  Re4 {[%clk 0:00:13]} 46. Qg1 {[%clk 0:00:27]} 1-0


[Site "https://www.chess.com"]

[Event "Titled Tuesday Blitz February 15 Early 2022"]
[White "Vifleemskaia, Svetlana"]
[Black "Senthil Maran K"]
[WhiteFideId "4129490"]
[BlackFideId "25035681"]
[WhiteElo "1901"]
[BlackElo "2194"]
[Result "0-1"]
[Round "02"]
[TimeControl "180+1"]
[Date "2022.02.15"]
[WhiteClock "0:00:01"]
[BlackClock "0:00:09"]

1. d4 {[%clk 0:03:00]}  Nf6 {[%clk 0:02:57]} 2. c4 {[%clk 0:02:59]}  c5 {[%clk 0:02:54]} 3. d5 {[%clk 0:02:58]}  b5 {[%clk 0:02:54]} 4. Nd2 {[%clk 0:02:57]}  g6 {[%clk 0:02:51]} 5. b3 {[%clk 0:02:56]}  Bg7 {[%clk 0:02:51]} 6. Bb2 {[%clk 0:02:55]}  O-O {[%clk 0:02:52]} 7. e4 {[%clk 0:02:54]}  d6 {[%clk 0:02:52]} 8. Bd3 {[%clk 0:02:52]}  bxc4 {[%clk 0:02:42]} 9. Nxc4 {[%clk 0:02:50]}  Na6 {[%clk 0:02:41]} 10. a3 {[%clk 0:02:50]}  Nc7 {[%clk 0:02:37]} 11. Nf3 {[%clk 0:02:48]}  Ba6 {[%clk 0:02:38]} 12. O-O {[%clk 0:02:45]}  Rb8 {[%clk 0:02:24]} 13. Re1 {[%clk 0:02:39]}  Qd7 {[%clk 0:02:18]} 14. h3 {[%clk 0:02:34]}  Qb5 {[%clk 0:02:11]} 15. Bc2 {[%clk 0:02:20]}  Qb7 {[%clk 0:02:11]} 16. Na5 {[%clk 0:02:13]}  Qb6 {[%clk 0:02:02]} 17. Nc6 {[%clk 0:02:04]}  Rbe8 {[%clk 0:02:02]} 18. b4 {[%clk 0:01:59]}  Nd7 {[%clk 0:01:48]} 19. Bxg7 {[%clk 0:01:55]}  Kxg7 {[%clk 0:01:49]} 20. Rb1 {[%clk 0:01:53]}  cxb4 {[%clk 0:01:44]} 21. axb4 {[%clk 0:01:50]}  Bb5 {[%clk 0:01:35]} 22. Qd4+ {[%clk 0:01:33]}  Qxd4 {[%clk 0:01:28]} 23. Nfxd4 {[%clk 0:01:30]}  Bxc6 {[%clk 0:01:24]} 24. Nxc6 {[%clk 0:01:24]}  a6 {[%clk 0:01:22]} 25. Bd3 {[%clk 0:01:20]}  Ne5 {[%clk 0:01:17]} 26. Bf1 {[%clk 0:01:18]}  Nxc6 {[%clk 0:01:14]} 27. dxc6 {[%clk 0:01:18]}  Rb8 {[%clk 0:01:14]} 28. e5 {[%clk 0:01:05]}  d5 {[%clk 0:01:12]} 29. Rec1 {[%clk 0:01:03]}  e6 {[%clk 0:01:11]} 30. Rc5 {[%clk 0:00:58]}  Rb6 {[%clk 0:01:11]} 31. g3 {[%clk 0:00:44]}  Rfb8 {[%clk 0:01:11]} 32. Ra1 {[%clk 0:00:44]}  Kf8 {[%clk 0:00:39]} 33. h4 {[%clk 0:00:18]}  h6 {[%clk 0:00:39]} 34. Kg2 {[%clk 0:00:17]}  g5 {[%clk 0:00:39]} 35. hxg5 {[%clk 0:00:16]}  hxg5 {[%clk 0:00:40]} 36. Bd3 {[%clk 0:00:17]}  Ke7 {[%clk 0:00:40]} 37. Kf3 {[%clk 0:00:15]}  Rxb4 {[%clk 0:00:35]} 38. Bxa6 {[%clk 0:00:14]}  g4+ {[%clk 0:00:34]} 39. Kg2 {[%clk 0:00:14]}  Ra8 {[%clk 0:00:31]} 40. Rca5 {[%clk 0:00:13]}  Kd8 {[%clk 0:00:20]} 41. Bb7 {[%clk 0:00:12]}  Rxa5 {[%clk 0:00:20]} 42. Rxa5 {[%clk 0:00:13]}  Re4 {[%clk 0:00:18]} 43. Ra1 {[%clk 0:00:11]}  Rxe5 {[%clk 0:00:18]} 44. Rh1 {[%clk 0:00:11]}  Ke7 {[%clk 0:00:17]} 45. Rh4 {[%clk 0:00:10]}  Re4 {[%clk 0:00:17]} 46. Rh8 {[%clk 0:00:08]}  Kd6 {[%clk 0:00:17]} 47. Rd8+ {[%clk 0:00:07]}  Kc5 {[%clk 0:00:17]} 48. Rd7 {[%clk 0:00:07]}  Kb6 {[%clk 0:00:16]} 49. Rxf7 {[%clk 0:00:07]}  Nb5 {[%clk 0:00:14]} 50. Re7 {[%clk 0:00:06]}  Nd6 {[%clk 0:00:13]} 51. Rd7 {[%clk 0:00:05]}  Nf5 {[%clk 0:00:12]} 52. Ba8 {[%clk 0:00:03]}  Rc4 {[%clk 0:00:10]} 53. Rf7 {[%clk 0:00:01]}  Rc2 {[%clk 0:00:10]} 54. Rb7+ {[%clk 0:00:01]}  Ka6 {[%clk 0:00:09]} 0-1


[Site "https://www.chess.com"]

[Event "Titled Tuesday Blitz February 15 Early 2022"]
[White "Volkov, Maksim"]
[Black "Hess, Robert"]
[WhiteFideId "54123070"]
[BlackFideId "2022036"]
[WhiteElo "2081"]
[BlackElo "2557"]
[Result "1-0"]
[Round "02"]
[TimeControl "180+1"]
[Date "2022.02.15"]
[WhiteClock "0:00:14"]
[BlackClock "0:00:02"]

1. d4 {[%clk 0:03:00]}  g6 {[%clk 0:03:00]} 2. c4 {[%clk 0:03:00]}  Bg7 {[%clk 0:03:01]} 3. g3 {[%clk 0:03:00]}  e6 {[%clk 0:03:00]} 4. Bg2 {[%clk 0:02:59]}  Ne7 {[%clk 0:03:00]} 5. Nc3 {[%clk 0:02:55]}  d6 {[%clk 0:02:58]} 6. Nf3 {[%clk 0:02:49]}  Nd7 {[%clk 0:02:58]} 7. O-O {[%clk 0:02:49]}  a6 {[%clk 0:02:58]} 8. e4 {[%clk 0:02:44]}  h6 {[%clk 0:02:58]} 9. Be3 {[%clk 0:02:41]}  b6 {[%clk 0:02:57]} 10. Qd2 {[%clk 0:02:39]}  Bb7 {[%clk 0:02:57]} 11. a4 {[%clk 0:02:34]}  a5 {[%clk 0:02:52]} 12. h3 {[%clk 0:02:33]}  Nc6 {[%clk 0:02:38]} 13. Rad1 {[%clk 0:02:20]}  Nb4 {[%clk 0:02:38]} 14. Nh4 {[%clk 0:02:12]}  g5 {[%clk 0:02:24]} 15. Nf3 {[%clk 0:02:11]}  Qe7 {[%clk 0:02:24]} 16. d5 {[%clk 0:02:02]}  Nc5 {[%clk 0:02:05]} 17. Bxc5 {[%clk 0:01:29]}  bxc5 {[%clk 0:02:03]} 18. e5 {[%clk 0:01:21]}  dxe5 {[%clk 0:01:53]} 19. dxe6 {[%clk 0:01:21]}  Qxe6 {[%clk 0:01:36]} 20. Nb5 {[%clk 0:01:10]}  Qe7 {[%clk 0:00:44]} 21. Rfe1 {[%clk 0:00:55]}  e4 {[%clk 0:00:40]} 22. Nxg5 {[%clk 0:00:35]}  hxg5 {[%clk 0:00:31]} 23. Bxe4 {[%clk 0:00:35]}  Bxe4 {[%clk 0:00:27]} 24. Rxe4 {[%clk 0:00:29]}  Qxe4 {[%clk 0:00:28]} 25. Re1 {[%clk 0:00:26]}  Qxe1+ {[%clk 0:00:25]} 26. Qxe1+ {[%clk 0:00:26]}  Kf8 {[%clk 0:00:23]} 27. Nxc7 {[%clk 0:00:24]}  Rc8 {[%clk 0:00:21]} 28. Nd5 {[%clk 0:00:23]}  Re8 {[%clk 0:00:13]} 29. Qc1 {[%clk 0:00:18]}  Re5 {[%clk 0:00:09]} 30. Ne3 {[%clk 0:00:16]}  Re4 {[%clk 0:00:02]} 31. Kg2 {[%clk 0:00:15]}  Bd4 {[%clk 0:00:02]} 32. Nf5 {[%clk 0:00:14]}  Nd3 {[%clk 0:00:02]} 33. Qxg5 {[%clk 0:00:14]}  Rg8 {[%clk 0:00:01]} 34. Qd8+ {[%clk 0:00:14]}  Re8 {[%clk 0:00:02]} 35. Qd6+ {[%clk 0:00:14]} 1-0


[Site "https://www.chess.com"]

[Event "Titled Tuesday Blitz February 15 Early 2022"]
[White "Vovk, Orest"]
[Black "Srihari L R"]
[WhiteFideId "14113490"]
[BlackFideId "46617116"]
[WhiteElo "2203"]
[BlackElo "2121"]
[Result "0-1"]
[Round "02"]
[TimeControl "180+1"]
[Date "2022.02.15"]
[WhiteClock "0:00:10"]
[BlackClock "0:00:21"]

1. h4 {[%clk 0:03:00]}  d5 {[%clk 0:02:57]} 2. h5 {[%clk 0:02:59]}  h6 {[%clk 0:02:57]} 3. e4 {[%clk 0:02:58]}  dxe4 {[%clk 0:02:57]} 4. Nc3 {[%clk 0:02:59]}  Nf6 {[%clk 0:02:57]} 5. Qe2 {[%clk 0:02:59]}  Bf5 {[%clk 0:02:56]} 6. Qb5+ {[%clk 0:02:59]}  Bd7 {[%clk 0:02:52]} 7. Qxb7 {[%clk 0:02:59]}  Nc6 {[%clk 0:02:52]} 8. Bb5 {[%clk 0:02:59]}  Rb8 {[%clk 0:02:50]} 9. Qxc6 {[%clk 0:02:59]}  Bxc6 {[%clk 0:02:20]} 10. Bxc6+ {[%clk 0:03:00]}  Nd7 {[%clk 0:02:20]} 11. Nxe4 {[%clk 0:03:00]}  e6 {[%clk 0:02:20]} 12. Nf3 {[%clk 0:03:01]}  Bd6 {[%clk 0:02:20]} 13. d4 {[%clk 0:03:01]}  O-O {[%clk 0:02:18]} 14. c3 {[%clk 0:02:57]}  Nf6 {[%clk 0:02:16]} 15. Nxf6+ {[%clk 0:02:57]}  Qxf6 {[%clk 0:02:16]} 16. Be4 {[%clk 0:02:25]}  Bf4 {[%clk 0:02:13]} 17. b4 {[%clk 0:02:15]}  Bxc1 {[%clk 0:01:54]} 18. Rxc1 {[%clk 0:02:16]}  Qf4 {[%clk 0:01:54]} 19. Nd2 {[%clk 0:02:16]}  f5 {[%clk 0:01:55]} 20. g3 {[%clk 0:02:10]}  Qd6 {[%clk 0:01:53]} 21. Bf3 {[%clk 0:02:00]}  Qa6 {[%clk 0:01:30]} 22. Be2 {[%clk 0:01:38]}  Qa3 {[%clk 0:01:20]} 23. O-O {[%clk 0:01:26]}  a5 {[%clk 0:01:08]} 24. b5 {[%clk 0:01:22]}  f4 {[%clk 0:00:58]} 25. g4 {[%clk 0:01:19]}  Qxa2 {[%clk 0:00:49]} 26. Rfd1 {[%clk 0:01:18]}  f3 {[%clk 0:00:39]} 27. Bc4 {[%clk 0:01:18]}  Qa3 {[%clk 0:00:37]} 28. Bxe6+ {[%clk 0:01:17]}  Kh8 {[%clk 0:00:37]} 29. c4 {[%clk 0:01:06]}  Qe7 {[%clk 0:00:35]} 30. d5 {[%clk 0:01:03]}  Qh4 {[%clk 0:00:35]} 31. Rc3 {[%clk 0:00:56]}  Qh3 {[%clk 0:00:33]} 32. Nxf3 {[%clk 0:00:45]}  Rxf3 {[%clk 0:00:34]} 33. Rxf3 {[%clk 0:00:44]}  Qxf3 {[%clk 0:00:34]} 34. Ra1 {[%clk 0:00:38]}  a4 {[%clk 0:00:31]} 35. Bf5 {[%clk 0:00:30]}  a3 {[%clk 0:00:28]} 36. Re1 {[%clk 0:00:22]}  Qc3 {[%clk 0:00:25]} 37. Re7 {[%clk 0:00:13]}  a2 {[%clk 0:00:24]} 38. Rxc7 {[%clk 0:00:11]}  a1=Q+ {[%clk 0:00:23]} 39. Kg2 {[%clk 0:00:12]}  Qce1 {[%clk 0:00:22]} 40. d6 {[%clk 0:00:09]}  Qh1+ {[%clk 0:00:21]} 41. Kg3 {[%clk 0:00:10]}  Qe5+ {[%clk 0:00:21]} 0-1


[Site "https://www.chess.com"]

[Event "Titled Tuesday Blitz February 15 Early 2022"]
[White "Vusatiuk, Vladimir"]
[Black "Singh, Ojasva"]
[WhiteFideId "14118610"]
[BlackFideId "25681958"]
[WhiteElo "2157"]
[BlackElo "1741"]
[Result "0-1"]
[Round "02"]
[TimeControl "180+1"]
[Date "2022.02.15"]
[WhiteClock "0:01:16"]
[BlackClock "0:00:58"]

1. d4 {[%clk 0:03:00]}  d5 {[%clk 0:02:59]} 2. c4 {[%clk 0:03:00]}  c6 {[%clk 0:02:59]} 3. cxd5 {[%clk 0:03:00]}  cxd5 {[%clk 0:03:00]} 4. Bf4 {[%clk 0:03:00]}  Nf6 {[%clk 0:02:59]} 5. e3 {[%clk 0:02:59]}  Nc6 {[%clk 0:02:59]} 6. Nc3 {[%clk 0:02:59]}  Bf5 {[%clk 0:02:58]} 7. Qb3 {[%clk 0:02:54]}  Qd7 {[%clk 0:02:44]} 8. Nf3 {[%clk 0:02:39]}  e6 {[%clk 0:02:44]} 9. Bb5 {[%clk 0:02:38]}  Bd6 {[%clk 0:02:23]} 10. Ne5 {[%clk 0:02:33]}  Bxe5 {[%clk 0:02:17]} 11. Bxe5 {[%clk 0:02:32]}  O-O {[%clk 0:02:17]} 12. Na4 {[%clk 0:02:27]}  Qe7 {[%clk 0:02:10]} 13. Bxc6 {[%clk 0:02:23]}  bxc6 {[%clk 0:02:11]} 14. Rc1 {[%clk 0:02:14]}  Rfc8 {[%clk 0:01:50]} 15. Nc5 {[%clk 0:01:58]}  Nd7 {[%clk 0:01:49]} 16. Nxd7 {[%clk 0:01:56]}  Qxd7 {[%clk 0:01:48]} 17. O-O {[%clk 0:01:56]}  f6 {[%clk 0:01:22]} 18. Bg3 {[%clk 0:01:52]}  Qe7 {[%clk 0:01:11]} 19. Rc5 {[%clk 0:01:34]}  e5 {[%clk 0:01:08]} 20. dxe5 {[%clk 0:01:30]}  Qxc5 {[%clk 0:01:07]} 21. exf6 {[%clk 0:01:29]}  gxf6 {[%clk 0:01:03]} 22. Rd1 {[%clk 0:01:25]}  Bc2 {[%clk 0:00:58]} 23. Qa4 {[%clk 0:01:16]}  Bxa4 {[%clk 0:00:58]} 0-1


[Site "https://www.chess.com"]

[Event "Titled Tuesday Blitz February 15 Early 2022"]
[White "Wagh Suyog"]
[Black "Leve, Nitai"]
[WhiteFideId "25071688"]
[BlackFideId "2006898"]
[WhiteElo "2181"]
[BlackElo "2144"]
[Result "1-0"]
[Round "02"]
[TimeControl "180+1"]
[Date "2022.02.15"]
[WhiteClock "0:00:09"]
[BlackClock "0:00:04"]

1. e4 {[%clk 0:02:58]}  e6 {[%clk 0:02:57]} 2. d4 {[%clk 0:02:49]}  d5 {[%clk 0:02:57]} 3. Nd2 {[%clk 0:02:23]}  Nf6 {[%clk 0:02:57]} 4. e5 {[%clk 0:02:23]}  Nfd7 {[%clk 0:02:57]} 5. f4 {[%clk 0:02:22]}  c5 {[%clk 0:02:57]} 6. Ndf3 {[%clk 0:02:22]}  Nc6 {[%clk 0:02:57]} 7. c3 {[%clk 0:02:22]}  cxd4 {[%clk 0:02:56]} 8. cxd4 {[%clk 0:02:22]}  Qb6 {[%clk 0:02:57]} 9. Ne2 {[%clk 0:02:14]}  f6 {[%clk 0:02:57]} 10. exf6 {[%clk 0:02:09]}  Nxf6 {[%clk 0:02:56]} 11. g3 {[%clk 0:02:09]}  Ne4 {[%clk 0:02:54]} 12. Bg2 {[%clk 0:02:09]}  Bb4+ {[%clk 0:02:54]} 13. Kf1 {[%clk 0:02:05]}  O-O {[%clk 0:02:49]} 14. a3 {[%clk 0:02:04]}  Bd6 {[%clk 0:02:49]} 15. Nc3 {[%clk 0:02:02]}  Bd7 {[%clk 0:02:42]} 16. Nxe4 {[%clk 0:01:55]}  dxe4 {[%clk 0:02:43]} 17. Ng5 {[%clk 0:01:43]}  Nxd4 {[%clk 0:02:36]} 18. Be3 {[%clk 0:01:30]}  e5 {[%clk 0:02:26]} 19. Bxe4 {[%clk 0:01:12]}  h6 {[%clk 0:01:41]} 20. Nf3 {[%clk 0:00:49]}  Bh3+ {[%clk 0:01:26]} 21. Kf2 {[%clk 0:00:47]}  Qxb2+ {[%clk 0:01:24]} 22. Qd2 {[%clk 0:00:42]}  Qxd2+ {[%clk 0:01:15]} 23. Nxd2 {[%clk 0:00:42]}  exf4 {[%clk 0:00:49]} 24. Bxd4 {[%clk 0:00:36]}  fxg3+ {[%clk 0:00:49]} 25. Ke2 {[%clk 0:00:37]}  g2 {[%clk 0:00:26]} 26. Rhb1 {[%clk 0:00:31]}  Rae8 {[%clk 0:00:07]} 27. Rxb7 {[%clk 0:00:28]}  Rf1 {[%clk 0:00:03]} 28. Rab1 {[%clk 0:00:08]}  Rxe4+ {[%clk 0:00:02]} 29. Nxe4 {[%clk 0:00:08]}  Bg4+ {[%clk 0:00:02]} 30. Ke3 {[%clk 0:00:08]}  Bf4+ {[%clk 0:00:01]} 31. Kd3 {[%clk 0:00:08]}  Bf5 {[%clk 0:00:01]} 32. Rb8+ {[%clk 0:00:07]}  Kh7 {[%clk 0:00:01]} 33. R8b7 {[%clk 0:00:07]}  Bxh2 {[%clk 0:00:01]} 34. Rxg7+ {[%clk 0:00:06]}  Kh8 {[%clk 0:00:02]} 35. Rb8+ {[%clk 0:00:06]}  Bxb8 {[%clk 0:00:02]} 36. Rg6+ {[%clk 0:00:06]}  Kh7 {[%clk 0:00:03]} 37. Rg7+ {[%clk 0:00:07]}  Kh8 {[%clk 0:00:03]} 38. Rxg2+ {[%clk 0:00:07]}  Kh7 {[%clk 0:00:04]} 39. Rg7+ {[%clk 0:00:07]}  Kh8 {[%clk 0:00:04]} 40. Rg1+ {[%clk 0:00:07]}  Kh7 {[%clk 0:00:04]} 41. Rxf1 {[%clk 0:00:08]}  Bxe4+ {[%clk 0:00:04]} 42. Kxe4 {[%clk 0:00:09]} 1-0


[Site "https://www.chess.com"]